bitfinex-derivatives/quotes_ETHF0:USTF0_20250730
["timestamp","ask_amount","ask_price","bid_price","bid_amount"]
[1753850177382,1.7156,3809.1,3809.0,1.4406]
[1753850177678,2.2407,3809.4,3809.3,1.4406]
[1753850177880,2.2407,3809.4,3809.3,22.4546]
[1753850178378,1.7156,3809.4,3809.3,22.4546]
[1753850178567,0.6732,3809.2,3809.1,1.2465]
[1753850178876,1.7156,3809.2,3809.1,22.2595]
[1753850179378,1.7156,3809.2,3809.1,22.4536]
[1753850179773,1.7156,3809.2,3809.1,22.4486]
[1753850180072,1.7156,3809.2,3808.9,0.52516]
[1753850180073,0.6732,3809.2,3808.6,0.7494]
[1753850180274,2.81407881,3808.7,3808.4,0.4401]
[1753850180477,0.6732,3808.5,3808.4,21.4491]
[1753850180673,1.00133,3808.4,3808.3,0.3093]
[1753850180870,1.7156,3808.4,3808.3,0.3093]
[1753850181076,1.7156,3808.4,3808.3,22.2625]
[1753850181278,2.24083,3808.4,3808.3,0.4971]
[1753850181482,2.24083,3808.4,3808.3,21.5121]
[1753850181778,1.9078,3807.9,3807.8,0.68123539]
[1753850181982,1.6748,3807.9,3807.8,21.69923539]
[1753850182169,1.6748,3807.9,3807.8,21.21433539]
[1753850182369,1.6748,3807.9,3807.8,0.19433539]
[1753850182569,1.6748,3807.9,3807.8,21.21633539]
[1753850183686,1.6748,3807.9,3807.8,0.19433539]
[1753850187384,0.52537,3807.4,3807.2,0.01838597]
[1753850187580,1.6748,3807.3,3807.2,1.22378597]
[1753850187986,1.6748,3807.3,3807.2,1.42628597]
[1753850188781,1.6748,3807.3,3807.2,0.01838597]
[1753850191580,1.6748,3807.3,3807.2,1.42628597]
[1753850192586,0.4869,3807.3,3807.2,1.95167597]
[1753850192779,2.20018,3807.3,3807.2,1.42628597]
[1753850193683,1.6748,3807.3,3807.2,1.42628597]
[1753850197287,1.6748,3807.3,3807.2,1.22378597]
[1753850197490,1.6748,3807.3,3807.2,0.01838597]
[1753850197982,0.9683,3807.3,3807.2,0.01838597]
[1753850198183,1.6748,3806.7,3806.6,1.93338]
[1753850198584,1.3882,3806.7,3806.6,2.15328]
[1753850198978,0.4869,3806.7,3806.6,2.15328]
[1753850199889,1.6748,3806.7,3806.6,1.93338]
[1753850200686,1.6748,3806.7,3806.6,1.4079]
[1753850201284,1.6748,3806.7,3806.6,1.2054]
[1753850201986,1.6748,3806.7,3806.6,1.4079]
[1753850202187,2.20026,3806.7,3806.6,1.4079]
[1753850202385,1.6748,3806.6,3806.5,0.4869]
[1753850202784,1.6748,3806.6,3806.5,0.7668]
[1753850203585,1.6748,3806.6,3806.5,1.2054]
[1753850204190,1.6748,3806.6,3806.5,1.4079]
[1753850204386,1.6748,3806.6,3806.5,0.4869]
[1753850204591,2.20032,3806.3,3806.2,1.4079]
[1753850204795,1.20156,3806.0,3805.9,1.4079]
[1753850204990,2.20036,3806.0,3805.9,0.9281]
[1753850205188,2.20036,3806.0,3805.9,1.128]
[1753850205494,2.20036,3806.0,3805.9,1.4079]
[1753850206288,1.6748,3806.0,3805.9,1.4079]
[1753850206491,2.20037,3805.9,3805.8,0.96123751]
[1753850206688,2.20037,3805.9,3805.8,1.39983751]
[1753850207199,2.20037,3805.9,3805.8,0.19443751]
[1753850208288,2.77461614,3805.9,3805.8,0.19443751]
[1753850208492,1.20154,3806.2,3806.1,0.4869]
[1753850208993,0.676,3805.9,3805.8,0.19443751]
[1753850209298,2.24904614,3805.9,3805.8,0.19443751]
[1753850210391,2.24904614,3805.9,3805.5,0.6894]
[1753850210392,0.9683,3805.6,3805.5,0.6894]
[1753850210594,0.4869,3805.6,3805.5,1.4079]
[1753850210893,0.21016863,3806.8,3805.5,0.7185]
[1753850210894,0.676,3806.5,3805.5,0.7185]
[1753850211088,1.2549,3806.2,3806.1,0.9693]
[1753850211292,0.6756,3805.8,3805.7,0.4981]
[1753850211494,0.6756,3805.8,3805.7,0.6917]
[1753850211495,1.7288,3805.8,3805.7,0.6917]
[1753850212006,1.7288,3805.8,3805.7,1.456]
[1753850212302,2.25439,3805.8,3805.7,1.456]
[1753850212492,1.7288,3805.8,3805.7,1.456]
[1753850212692,0.5011,3805.8,3805.7,1.456]
[1753850212893,0.5011,3805.8,3805.7,1.676]
[1753850213496,0.75,3806.2,3806.1,0.6917]
[1753850213497,1.4256,3806.2,3806.1,0.6917]
[1753850213697,0.6756,3806.2,3806.1,1.676]
[1753850214200,1.4385,3806.2,3806.1,1.456]
[1753850214396,1.7288,3806.2,3806.1,1.456]
[1753850215400,1.95117,3805.9,3805.8,1.456]
[1753850215591,2.25437,3805.9,3805.8,1.456]
[1753850216993,2.25443,3805.6,3805.5,0.6917]
[1753850217198,2.25443,3805.6,3805.5,1.456]
[1753850217402,2.25443,3805.6,3805.5,1.2624]
[1753850217701,2.25443,3805.6,3805.5,1.456]
[1753850220399,1.66083,3806.2,3806.1,1.456]
[1753850220597,0.4812,3806.2,3806.1,0.5017]
[1753850220801,0.2903,3806.5,3806.4,0.6917]
[1753850220802,0.9659,3806.5,3806.4,0.6917]
[1753850221095,0.1979,3806.0,3805.9,0.9579]
[1753850221302,0.1979,3806.0,3805.9,1.676]
[1753850221697,1.7288,3806.0,3805.9,1.456]
[1753850223103,0.9788,3806.0,3805.9,1.676]
[1753850223299,0.1979,3805.8,3803.8,0.19453974]
[1753850223501,0.57424614,3806.4,3805.4,0.6917]
[1753850223502,1.02673,3805.5,3805.4,0.6917]
[1753850223707,0.3032,3805.5,3805.4,1.456]
[1753850223901,0.3032,3805.5,3805.4,1.676]
[1753850224106,1.7288,3806.4,3806.3,0.6917]
[1753850224398,2.25439,3805.8,3805.7,1.0019]
[1753850224600,1.7288,3805.8,3805.7,1.456]
[1753850225002,0.9788,3805.8,3805.7,1.456]
[1753850225203,0.3032,3806.0,3805.9,1.676]
[1753850225403,0.5011,3806.0,3805.9,1.676]
[1753850225804,0.9788,3806.0,3805.9,1.456]
[1753850226406,0.9788,3806.0,3805.9,1.676]
[1753850227307,0.9788,3806.0,3805.9,1.456]
[1753850227513,1.7288,3806.0,3805.9,1.456]
[1753850227712,0.9788,3806.0,3805.9,1.456]
[1753850229310,1.7288,3806.0,3805.9,1.456]
[1753850230006,1.314,3805.8,3804.7,5.057]
[1753850230208,1.20124,3805.5,3805.4,0.6917]
[1753850230403,0.72359,3805.1,3805.0,0.6917]
[1753850230605,2.25449,3805.1,3805.0,1.456]
[1753850231207,0.1979,3804.3,3804.2,0.01840047]
[1753850231408,0.5011,3804.8,3804.7,0.1936]
[1753850231712,1.7288,3804.3,3804.2,0.01840047]
[1753850232914,1.7288,3804.3,3804.2,0.51650047]
[1753850233216,1.7288,3804.3,3804.2,0.01840047]
[1753850233410,6.98607804,3804.3,3804.2,0.01840047]
[1753850233805,0.9788,3804.3,3804.2,0.51650047]
[1753850234112,0.82888,3805.1,3804.4,0.7643]
[1753850234410,0.5011,3804.6,3804.5,1.456]
[1753850234620,0.3032,3804.6,3804.5,1.6764]
[1753850234820,0.5011,3804.9,3804.8,1.456]
[1753850235021,1.7288,3804.9,3804.8,1.456]
[1753850235231,1.7288,3804.9,3804.8,0.4981]
[1753850235525,1.7288,3804.9,3804.4,0.52578]
[1753850235526,0.6955,3804.4,3804.3,0.6917]
[1753850235722,1.7288,3804.4,3804.3,0.3081]
[1753850236024,2.25459,3804.3,3804.2,0.01840047]
[1753850236227,2.25459,3804.3,3804.2,0.32650047]
[1753850236525,2.25459,3804.3,3804.2,0.01840047]
[1753850239329,7.51186804,3804.3,3804.2,0.01840047]
[1753850240228,0.52585,3803.9,3803.8,0.19453974]
[1753850240421,2.25465,3803.9,3803.8,0.19453974]
[1753850242017,7.51248088,3803.9,3803.8,0.19453974]
[1753850243826,0.7007,3803.2,3803.1,0.7055]
[1753850244019,1.0039,3803.2,3803.1,0.7055]
[1753850244217,0.3032,3803.2,3803.1,0.9259]
[1753850244420,0.2023,3803.7,3803.6,1.97589]
[1753850244617,1.31471,3803.7,3803.1,0.5013]
[1753850244828,1.4439,3803.2,3803.1,0.7055]
[1753850245022,1.7471,3803.2,3803.1,0.7055]
[1753850245218,1.7471,3803.2,3803.1,1.45]
[1753850246624,1.4463,3803.2,3803.1,1.45]
[1753850246822,0.3032,3803.2,3803.1,1.45]
[1753850247223,0.3032,3803.2,3803.1,2.19626]
[1753850250028,1.1638366,3804.0,3802.6,0.2978]
[1753850250029,1.0464,3803.8,3802.6,0.2978]
[1753850250218,1.0464,3803.8,3802.6,0.5181]
[1753850250424,1.96981,3803.5,3803.4,0.7055]
[1753850250625,2.27301,3803.5,3803.4,1.45]
[1753850251122,1.02435,3803.2,3803.1,0.5013]
[1753850251326,2.27305,3803.2,3803.1,1.45]
[1753850252328,2.27305,3803.2,3802.3,39.0088366]
[1753850252329,1.31491,3803.1,3802.1,0.2203]
[1753850252525,1.7471,3802.7,3802.6,1.45]
[1753850252823,1.0039,3802.7,3802.6,1.45]
[1753850253325,0.7432,3803.0,3802.9,0.7055]
[1753850253326,0.82917,3803.0,3802.9,0.7055]
[1753850253521,1.03147,3803.0,3802.9,1.45]
[1753850253723,1.52987,3803.0,3802.9,1.45]
[1753850253924,2.27307,3803.0,3802.9,1.45]
[1753850254431,2.27307,3803.0,3802.9,1.2458]
[1753850254828,2.27307,3803.0,3802.9,0.5013]
[1753850255224,1.7471,3802.7,3802.6,1.45]
[1753850255429,1.0039,3802.7,3802.6,1.1522]
[1753850255729,1.7471,3802.7,3802.6,1.45]
[1753850256121,1.7471,3802.7,3802.1,0.57522058]
[1753850256424,1.52993,3802.6,3802.5,0.3026]
[1753850256726,6.26339009,3802.6,3802.5,1.45]
[1753850256934,0.3032,3802.6,3802.5,1.6703]
[1753850257229,0.3032,3802.8,3802.7,0.7055]
[1753850257529,0.3032,3802.8,3802.7,1.45]
[1753850257726,0.5055,3802.8,3802.7,1.45]
[1753850257927,0.52602,3802.7,3801.8,0.19464208]
[1753850258129,0.3032,3802.7,3802.6,1.45]
[1753850258336,0.3032,3802.7,3802.6,1.6703]
[1753850258825,0.3032,3802.9,3802.7,0.9648]
[1753850259029,0.3032,3802.9,3802.8,1.45]
[1753850259321,0.5055,3802.9,3802.8,1.45]
[1753850259520,1.0039,3802.9,3802.8,1.45]
[1753850260129,2.32232058,3802.9,3802.8,1.45]
[1753850260528,2.32232058,3802.9,3802.8,0.5013]
[1753850260719,1.7471,3802.6,3802.5,0.5013]
[1753850260918,1.7471,3802.6,3802.5,1.45]
[1753850261124,1.0039,3802.6,3802.5,1.45]
[1753850261426,0.3032,3802.8,3802.7,1.6703]
[1753850262625,0.3008,3803.2,3802.7,0.7168]
[1753850262832,0.3032,3803.1,3803.0,1.6703]
[1753850263126,1.10113058,3803.5,3803.4,0.7055]
[1753850263332,1.90003058,3803.5,3803.4,1.45]
[1753850263629,2.84823058,3803.5,3803.4,0.5013]
[1753850264734,2.27305,3803.2,3803.1,1.45]
[1753850264932,0.4424,3802.7,3802.6,0.00870193]
[1753850265132,0.2023,3803.0,3802.9,0.3026]
[1753850265430,1.4439,3803.0,3802.9,1.2458]
[1753850265829,1.7471,3803.0,3802.9,1.45]
[1753850266334,2.27309,3802.9,3802.8,0.5013]
[1753850266633,2.84831058,3802.9,3802.6,0.75320193]
[1753850266932,2.27312,3802.7,3802.6,1.25450193]
[1753850267635,2.27312,3802.7,3802.6,0.00870193]
[1753850270028,1.03152,3802.7,3802.6,1.45870193]
[1753850270229,1.03148,3803.0,3802.9,1.2513]
[1753850270435,1.52988,3803.0,3802.9,1.45]
[1753850270638,2.27308,3803.0,3802.9,0.5013]
[1753850271541,2.27308,3803.0,3802.9,1.4523]
[1753850272728,2.27308,3803.0,3802.9,0.5013]
[1753850273539,1.7471,3803.0,3802.9,1.4425]
[1753850273839,2.27307,3803.0,3802.9,1.4425]
[1753850275343,0.5055,3803.0,3802.9,1.96849]
[1753850275834,0.5055,3803.0,3802.9,2.18809]
[1753850276136,1.03147,3803.0,3802.9,1.4425]
[1753850276343,2.27997,3803.0,3802.9,1.4425]
[1753850277236,2.27997,3803.0,3802.9,1.1425]
[1753850277935,2.27997,3803.0,3802.9,1.4425]
[1753850278135,2.85519058,3803.0,3802.9,0.3026]
[1753850278436,0.52602,3802.7,3802.6,0.00870193]
[1753850278640,1.7385,3802.7,3802.6,1.44010193]
[1753850278835,1.7385,3802.7,3802.6,1.14010193]
[1753850279040,1.7385,3802.7,3802.6,1.44010193]
[1753850280141,0.976,3802.7,3802.6,1.44010193]
[1753850280639,0.976,3802.7,3802.6,1.65970193]
[1753850280941,0.92718,3803.0,3802.9,0.6846]
[1753850281143,0.6836,3802.7,3802.6,0.69330193]
[1753850281338,5.78547009,3803.0,3802.7,0.7456]
[1753850281540,1.4361,3803.0,3802.9,0.6846]
[1753850281740,0.976,3803.0,3802.9,1.4314]
[1753850281944,2.26447,3803.0,3802.9,1.4314]
[1753850282842,0.6836,3802.7,3802.6,0.20310193]
[1753850283036,0.2924,3802.7,3802.6,0.91290193]
[1753850283441,0.49,3802.7,3802.6,1.65970193]
[1753850284241,0.976,3802.7,3802.6,1.44010193]
[1753850284436,1.50202,3802.7,3802.6,1.44010193]
[1753850284645,2.26452,3802.7,3802.6,1.44010193]
[1753850285144,7.52401009,3802.7,3802.6,0.00870193]
[1753850287243,0.2924,3801.9,3801.8,1.12024208]
[1753850287444,0.2924,3801.9,3801.8,1.62604208]
[1753850287742,0.976,3801.9,3801.8,1.62604208]
[1753850287949,1.7385,3801.9,3801.8,1.62604208]
[1753850288244,6.99909681,3801.9,3801.8,0.19464208]
[1753850289045,6.99909681,3801.9,3801.8,1.62604208]
[1753850289244,1.7385,3801.9,3801.8,1.62604208]
[1753850289439,0.976,3801.9,3801.8,1.62604208]
[1753850289645,1.7385,3802.4,3802.3,1.4314]
[1753850290153,6.99909681,3802.4,3802.3,1.4314]
[1753850290949,7.57431739,3802.4,3802.3,0.4902]
[1753850291145,2.26463,3801.9,3801.8,0.19464208]
[1753850291340,2.83985058,3801.9,3801.8,0.19464208]
[1753850291547,8.09975563,3801.9,3801.8,0.19464208]
[1753850292846,7.57362563,3801.9,3801.8,0.19464208]
[1753850293043,6.03230505,3801.9,3801.8,2.15218208]
[1753850293344,0.2924,3801.9,3801.8,0.68484208]
[1753850293549,2.26463,3801.9,3801.8,1.62604208]
[1753850293749,1.7385,3801.9,3801.8,1.62604208]
[1753850294754,1.7385,3801.9,3801.8,2.15218208]
[1753850294954,0.976,3801.9,3801.8,2.15218208]
[1753850295253,0.976,3801.9,3801.8,1.62604208]
[1753850295753,1.7385,3801.9,3801.8,1.62604208]
[1753850296253,1.7385,3801.9,3801.8,0.19464208]
[1753850296447,2.31372058,3801.9,3801.8,0.19464208]
[1753850297149,2.31372058,3801.9,3801.8,0.68484208]
[1753850297346,0.976,3801.9,3801.8,1.62604208]
[1753850297749,1.7385,3801.9,3801.8,1.62604208]
[1753850298254,1.7385,3801.9,3801.8,0.19464208]
[1753850298448,1.7385,3801.9,3801.8,1.62604208]
[1753850300852,6.99909681,3801.9,3801.8,0.38904208]
[1753850301047,6.99909681,3801.9,3801.8,0.19464208]
[1753850301556,0.2801,3801.6,3799.8,0.19474453]
[1753850301751,1.75463,3800.5,3800.4,1.0018]
[1753850301950,1.2283,3800.5,3800.4,1.0018]
[1753850303254,1.7151,3800.5,3800.4,1.0018]
[1753850303655,0.52633,3800.4,3800.3,0.1931]
[1753850303855,1.75463,3800.4,3800.3,1.4674]
[1753850305155,1.75463,3800.4,3800.3,0.4984]
[1753850305460,1.7151,3800.3,3800.2,1.4674]
[1753850306363,1.435,3800.3,3800.2,1.4674]
[1753850306562,0.7636,3800.3,3800.2,1.6973]
[1753850306861,0.4831,3800.3,3800.2,1.6973]
[1753850307562,0.2907,3800.9,3800.8,0.6965]
[1753850307765,0.9703,3800.9,3800.8,1.4674]
[1753850307968,2.29032058,3800.9,3800.8,1.4674]
[1753850309759,2.01022058,3800.9,3800.8,1.4674]
[1753850310265,1.33882058,3801.7,3801.6,1.0018]
[1753850310456,2.29032058,3801.7,3801.6,0.4984]
[1753850310658,2.24132,3801.2,3801.1,0.4984]
[1753850310955,2.81654058,3801.2,3801.1,0.1931]
[1753850311157,0.52626,3801.0,3800.8,0.3053]
[1753850311363,0.4831,3800.3,3800.2,1.4674]
[1753850311668,1.7151,3800.3,3800.2,1.4674]
[1753850312264,1.7151,3799.9,3799.8,1.66214453]
[1753850312460,1.7151,3799.9,3799.8,0.69314453]
[1753850312657,1.7151,3799.9,3799.8,1.19654453]
[1753850312859,0.2907,3800.6,3800.3,0.6587]
[1753850313063,1.2283,3800.6,3800.5,1.4674]
[1753850313363,5.26281165,3801.3,3800.7,0.6965]
[1753850313560,0.7636,3801.3,3801.2,1.4674]
[1753850313860,1.7151,3801.3,3801.2,1.99362]
[1753850314166,0.2907,3801.3,3801.2,2.22302]
[1753850314363,0.4831,3801.3,3801.2,1.02462]
[1753850314563,1.2283,3801.3,3801.2,1.99362]
[1753850314762,0.2127771,3802.0,3801.6,1.99356]
[1753850314763,1.435,3801.7,3801.6,1.99356]
[1753850315261,5.26142716,3801.9,3801.6,1.22266]
[1753850315465,0.7636,3802.0,3801.9,1.4674]
[1753850315663,2.19163682,3802.0,3801.9,1.4674]
[1753850315857,1.52023682,3802.0,3801.9,1.4674]
[1753850316056,1.52023682,3802.0,3801.9,1.6968]
[1753850316259,0.75663682,3802.0,3801.9,1.6968]
[1753850316465,0.93839922,3802.6,3801.3,1.31553]
[1753850316466,1.2283,3802.6,3802.5,1.0018]
[1753850316665,2.18938013,3802.6,3802.5,1.4674]
[1753850317856,1.98268013,3802.6,3802.5,1.4674]
[1753850318068,0.75438013,3802.6,3802.5,1.6968]
[1753850318572,0.2907,3802.9,3802.8,0.6965]
[1753850318868,1.03628819,3802.9,3802.8,1.4674]
[1753850319065,1.03628819,3802.9,3802.8,1.6968]
[1753850319266,0.93839922,3803.5,3803.4,0.52592]
[1753850319467,1.4008011,3803.7,3803.6,0.84208]
[1753850319667,0.2907,3803.7,3803.6,1.22438]
[1753850320782,1.42128285,3803.9,3803.8,1.22436]
[1753850321085,0.4907,3803.9,3803.8,0.6985]
[1753850321781,1.4283,3803.9,3803.8,0.6985]
[1753850323477,0.9636,3803.9,3803.8,0.6985]
[1753850323776,0.4907,3803.9,3803.8,0.6985]
[1753850324180,0.6831,3803.9,3803.8,0.6985]
[1753850324574,0.4907,3803.9,3803.8,0.6985]
[1753850324978,0.9636,3803.9,3803.8,0.6985]
[1753850325174,1.4283,3803.9,3803.8,0.6985]
[1753850326281,0.6831,3803.9,3803.8,0.6985]
[1753850327984,0.9636,3803.9,3803.8,0.6985]
[1753850328573,1.4283,3803.9,3803.8,0.6985]
[1753850329080,1.635,3803.9,3803.8,0.6985]
[1753850329679,1.635,3803.9,3803.8,1.22436]
[1753850331082,1.4283,3803.9,3803.8,1.22436]
[1753850331584,0.9636,3803.9,3803.8,1.22436]
[1753850331977,1.4096,3803.9,3803.8,1.22436]
[1753850333583,0.9636,3803.9,3803.8,1.22436]
[1753850334084,1e-05,3803.9,3803.8,6.48219088]
[1753850335487,0.2,3805.9,3805.8,0.52559]
[1753850335686,0.2841,3805.7,3804.8,0.366]
[1753850335885,0.2,3805.9,3804.6,39.03452525]
[1753850335886,1.3956,3805.5,3805.4,0.4827]
[1753850336089,1.7042,3805.5,3805.4,0.4827]
[1753850336692,1.7042,3805.5,3805.4,0.684]
[1753850340286,1.7042,3805.5,3805.4,0.4827]
[1753850340688,1.7042,3805.5,3805.4,0.5601]
[1753850341389,1.7042,3805.5,3805.4,0.684]
[1753850341692,0.2841,3805.5,3805.4,0.684]
[1753850341892,1.2073,3805.5,3805.4,0.684]
[1753850342290,0.2841,3805.5,3805.4,5.93962022]
[1753850342794,0.2841,3805.7,3805.6,0.52562]
[1753850342992,0.2841,3805.7,3805.6,2.37614525]
[1753850343193,0.2841,3805.7,3805.6,7.63176547]
[1753850343391,0.2841,3805.7,3805.6,2.37614525]
[1753850343595,0.2,3805.9,3805.6,7.63148927]
[1753850343796,0.4841,3805.9,3805.8,1.13219]
[1753850343996,1.4582,3805.9,3805.8,0.1239]
[1753850344299,1.7042,3805.2,3805.1,0.684]
[1753850344592,1.7042,3805.2,3805.1,5.93906785]
[1753850344898,1.7042,3804.5,3804.4,1.64922525]
[1753850345192,1.92138,3804.4,3804.3,0.1941]
[1753850345389,2.22998,3804.4,3804.3,0.5601]
[1753850345590,2.22998,3804.4,3804.3,0.1941]
[1753850345799,2.23002,3804.1,3804.0,0.4827]
[1753850346186,2.23002,3804.1,3804.0,5.73970166]
[1753850346993,1.7042,3804.1,3804.0,5.73970166]
[1753850347195,1.7042,3804.1,3804.0,5.81710166]
[1753850347595,1.7042,3804.1,3804.0,5.73970166]
[1753850347795,1.7042,3804.1,3804.0,0.4827]
[1753850347996,1.7042,3804.1,3804.0,0.1941]
[1753850348896,0.4772,3803.6,3803.3,0.2886]
[1753850349096,0.4772,3803.2,3803.1,0.684]
[1753850349298,0.9232,3803.2,3803.1,0.684]
[1753850349498,1.7042,3803.2,3803.1,5.94238383]
[1753850349699,1.3956,3803.2,3803.1,5.94238383]
[1753850350002,1.7042,3803.2,3803.1,5.94238383]
[1753850350502,1.3956,3803.2,3803.1,5.94238383]
[1753850350702,1.7042,3803.2,3803.1,0.1941]
[1753850352397,1.7042,3803.2,3803.1,0.4827]
[1753850352695,1.7042,3803.2,3803.1,0.5601]
[1753850353599,1.7042,3803.2,3803.1,0.1941]
[1753850353805,0.9496,3802.9,3802.8,0.4827]
[1753850354100,1.7042,3802.9,3802.8,0.4827]
[1753850354604,1.7042,3802.9,3802.8,0.684]
[1753850355403,0.9741,3802.6,3802.5,0.4827]
[1753850355608,1.7042,3802.6,3802.5,0.4827]
[1753850357209,0.9496,3802.4,3802.3,0.1239]
[1753850357409,1.2582,3802.4,3802.3,0.684]
[1753850357706,0.7613,3802.4,3802.3,0.684]
[1753850358005,1.2073,3802.4,3802.3,0.684]
[1753850358210,0.2841,3802.4,3802.3,0.684]
[1753850358800,0.4734,3802.4,3802.3,0.684]
[1753850358998,0.7613,3802.4,3802.3,0.684]
[1753850359201,1.7042,3802.4,3802.3,0.4827]
[1753850360107,1.7042,3802.4,3802.3,0.684]
[1753850360298,0.7613,3802.8,3802.7,0.684]
[1753850360502,1.7042,3802.8,3802.7,0.4827]
[1753850360704,0.4772,3802.3,3802.2,0.84408]
[1753850360904,1.2073,3802.3,3802.2,0.684]
[1753850361104,1.7042,3802.3,3802.2,5.86650505]
[1753850361302,1.7042,3802.3,3802.2,5.94200505]
[1753850362612,1.7042,3802.3,3802.2,6.46809505]
[1753850363007,1.2073,3802.3,3802.2,6.46809505]
[1753850364013,0.7613,3802.3,3802.2,6.46809505]
[1753850365913,0.2841,3802.3,3802.2,6.46809505]
[1753850366706,0.7722,3802.3,3802.2,6.46809505]
[1753850367220,1.7224,3802.3,3802.2,0.1941]
[1753850368020,1.7224,3802.3,3802.2,0.4859]
[1753850368215,1.7224,3802.3,3801.8,0.19464208]
[1753850368416,0.4737,3802.1,3801.8,0.19464208]
[1753850368617,1.7345,3801.9,3801.8,1.40997208]
[1753850369531,1.7345,3801.9,3801.8,0.88384208]
[1753850369724,1.7345,3801.9,3801.8,2.05036733]
[1753850369725,0.2962,3801.9,3801.8,2.05036733]
[1753850369916,0.2962,3801.9,3801.8,7.31096414]
[1753850370723,1.4359,3801.9,3801.8,5.65633889]
[1753850370925,1.7345,3801.9,3801.8,0.68754208]
[1753850371123,0.4996,3801.9,3801.8,1.40998208]
[1753850371421,0.7843,3801.9,3801.8,1.40998208]
[1753850371620,1.2469,3801.9,3801.8,1.40998208]
[1753850371815,1.7345,3801.9,3801.8,1.40998208]
[1753850373218,1.4359,3801.9,3801.8,1.40998208]
[1753850373714,1.2469,3801.9,3801.8,1.40998208]
[1753850374229,0.2962,3801.9,3801.8,1.40998208]
[1753850375323,0.4996,3801.9,3801.8,1.40998208]
[1753850375927,0.7843,3801.9,3801.8,1.40998208]
[1753850376226,1.2469,3801.9,3801.8,1.40998208]
[1753850376626,0.2962,3801.9,3801.8,1.40998208]
[1753850376920,0.2962,3801.9,3801.8,6.67057889]
[1753850379021,0.52601,3802.8,3802.3,0.52606]
[1753850379227,1.7345,3802.5,3802.4,0.5684]
[1753850379424,1.7345,3802.5,3802.4,0.4929]
[1753850380021,1.7345,3802.5,3802.2,0.52608]
[1753850380219,0.3924,3802.4,3802.3,0.4929]
[1753850380524,0.6771,3802.4,3802.3,0.5705]
[1753850380727,0.4881,3802.4,3802.3,0.6171]
[1753850380930,0.2962,3802.4,3802.3,5.95460505]
[1753850381722,1.31467,3803.8,3802.3,5.95460505]
[1753850381723,1.4359,3803.1,3803.0,0.52596]
[1753850382031,0.6771,3803.1,3803.0,0.2011]
[1753850382225,0.189,3803.2,3803.0,0.52597]
[1753850382425,0.6771,3803.2,3803.1,0.5705]
[1753850382620,1.7345,3803.2,3803.1,0.5705]
[1753850383228,0.2962,3803.2,3803.1,0.5705]
[1753850383422,1.7345,3803.2,3803.1,5.8294369]
[1753850383623,1.7345,3803.2,3803.1,5.9536369]
[1753850386826,0.7843,3803.2,3803.1,5.9536369]
[1753850387031,1.2469,3803.2,3803.1,5.9536369]
[1753850387721,1.2469,3803.2,3803.1,7.12016215]
[1753850387923,1.7345,3803.6,3803.5,1.0964]
[1753850388127,0.2962,3803.6,3803.5,1.2206]
[1753850388326,0.4996,3803.6,3803.5,1.2206]
[1753850388527,0.4996,3803.6,3803.5,6.47939862]
[1753850388731,0.4996,3803.6,3803.5,7.64592387]
[1753850388926,1.7345,3803.6,3803.5,5.25879862]
[1753850389129,0.6771,3803.2,3803.1,5.5499]
[1753850389335,1.7345,3803.2,3803.1,5.5499]
[1753850389532,1.7345,3803.2,3803.1,10.80814558]
[1753850390036,1.7345,3803.2,3803.1,10.84119558]
[1753850390235,1.7345,3802.4,3802.3,5.25434898]
[1753850390634,1.7345,3802.4,3802.3,7.21236862]
[1753850392133,1.7345,3802.4,3802.3,6.68629862]
[1753850392334,0.6771,3802.4,3802.2,3.30077898]
[1753850392538,1.735,3802.3,3802.2,3.30077898]
[1753850392937,0.6751,3802.3,3802.0,0.98611]
[1753850393243,0.9813,3802.2,3802.1,0.4878]
[1753850393538,0.9813,3802.2,3802.1,3.79107881]
[1753850393739,1.735,3802.2,3802.1,4.74227881]
[1753850394933,1.735,3802.2,3802.1,1.439]
[1753850395341,1.735,3802.2,3802.0,4.46980406]
[1753850395638,1.735,3802.1,3802.0,8.56346054]
[1753850395838,1.735,3802.1,3802.0,9.05126054]
[1753850396336,1.735,3802.1,3802.0,5.74798173]
[1753850396738,1.735,3802.1,3802.0,6.69918173]
[1753850397439,1.735,3802.1,3802.0,7.22529173]
[1753850398835,1.735,3802.1,3802.0,6.69918173]
[1753850400239,1.4435,3802.1,3802.0,5.26018173]
[1753850400542,0.52607,3802.4,3801.8,0.72078208]
[1753850400543,1.735,3802.0,3801.9,0.9478]
[1753850400745,1.735,3802.0,3801.9,2.01434208]
[1753850401940,0.1984,3802.0,3801.9,6.97860052]
[1753850402141,1.2471,3802.0,3801.9,6.97860052]
[1753850402446,1.735,3802.0,3801.9,6.97860052]
[1753850402633,1.2471,3801.9,3801.8,0.19464208]
[1753850402839,1.2471,3801.9,3801.7,3.30327881]
[1753850402840,1.00484,3801.8,3801.7,3.30327881]
[1753850403034,2.31034208,3801.8,3801.2,0.018415]
[1753850403241,1.99291,3801.3,3801.2,0.322715]
[1753850403640,1.4667,3801.3,3801.2,1.005515]
[1753850403837,0.1939,3801.7,3801.2,5.96229615]
[1753850404041,1.1605,3801.8,3801.7,1.7433]
[1753850404543,0.3948,3801.8,3801.7,1.7433]
[1753850404744,0.3948,3802.1,3802.0,1.2833]
[1753850405045,0.8802,3802.3,3802.2,1.2833]
[1753850405247,0.8802,3802.3,3802.2,2.26938]
[1753850405548,0.1964,3802.3,3802.2,1.7433]
[1753850405744,0.8802,3802.3,3802.2,1.7433]
[1753850406046,0.3948,3802.3,3802.2,1.7433]